Cogmind - Beta 11 X7 @@@ ROGUE MODE // 2021.09.23 @ 23:41:07 Player: Runia Result: Destroyed by H-55 Commando with Gauss Rifle Performance ------------- Evolutions (1) 500 Regions Visited (5) 1000 Robots Destroyed (77) 385 Value Destroyed (2178) 2178 Prototype IDs (26) 520 Alien Tech Used (0) 0 Bonus (300) 300 TOTAL SCORE: 4883 Bonus ------- Aligned with FarCom 300 Cogmind --------- Core Integrity 0/400 Matter 228/300 Energy 100/100 System Corruption 11% Temperature Cool (0) Movement Core (150) Ox2 Location -9/Exiles Parts ------- > --- POWER (1) -------- (None) > --- PROPULSION (3) --- (None) > --- UTILITY (3) ------ Targeting Computer > --- WEAPON (2) ------- AWS/Thermal > --- INVENTORY (5) ---- Terrain Scanner Hacking Suite Hacking Suite Heavy Assault Rifle Plasma Cutter Peak State ------------ > --- POWER ------------ Ion Engine > --- PROPULSION ------- (None) > --- UTILITY ---------- High-capacity Storage Unit Targeting Computer Light Armor Plating > --- WEAPON ----------- AWS/Thermal > --- INVENTORY -------- Fission Core Light Fission Core Terrain Scanner Terrain Scan Processor Hacking Suite Hacking Suite Heavy Assault Rifle Heavy Assault Rifle Mini Grenade Launcher Mini Grenade Launcher Plasma Cutter [Rating: 22] Favorites ----------- Power Ion Engine Engine Ion Engine Power Core Light Nuclear Core Propulsion Aluminum Leg Treads Light Treads Leg Aluminum Leg Utility Targeting Computer Device Structural Scanner Storage Large Storage Unit Processor Targeting Computer Protection Medium Armor Plating Weapon Heavy Assault Rifle Energy Gun Backup Laser I Ballistic Gun Heavy Assault Rifle Launcher Grenade Launcher Slashing Weapon Mining Claw Build | -11 -10 -10 -9 -9 -9 ------- Run | Scr Mat Min Mat Min Exi Slots Evolved 2 | . . . 2 . . Power . | . . . . . . Propulsion 1 | . . . 1 . . Utility 1 | . . . 1 . . Weapon . | . . . . . . Parts Attached 56 | . 8 5 29 4 10 Power 6 | . 2 . 2 . 2 Engine 5 | . 1 . 2 . 2 Core 1 | . 1 . . . . Reactor . | . . . . . . Propulsion 18 | . 2 . 13 3 . Treads 10 | . . . 7 3 . Leg 8 | . 2 . 6 . . Wheel . | . . . . . . Hover . | . . . . . . Flight . | . . . . . . Utility 7 | . 2 . 2 . 3 Device 2 | . . . 2 . . Storage 2 | . 1 . . . 1 Processor 1 | . 1 . . . . Hackware . | . . . . . . Protection 2 | . . . . . 2 Artifact . | . . . . . . Weapon 25 | . 2 5 12 1 5 Energy Gun 2 | . . 1 . . 1 Energy Cannon . | . . . . . . Ballistic Gun 12 | . 1 . 8 1 2 Ballistic Cannon . | . . . . . . Launcher 9 | . 1 2 4 . 2 Special Weapon . | . . . . . . Impact Weapon . | . . . . . . Slashing Weapon 2 | . . 2 . . . Piercing Weapon . | . . . . . . Special Melee Weapon . | . . . . . . Unidentified Prototypes 1 | . . . 1 . . Parts Lost 12 | . 1 2 2 1 6 Power 2 | . 1 . . . 1 Propulsion 3 | . . . . . 3 Utility 1 | . . . . . 1 Weapon 6 | . . 2 2 1 1 Highest Loss Streak 6 | . 1 2 1 1 6 Average Slot Usage (%) 98 | . 99 98 98 100 94 Engine 10 | . 8 14 10 11 10 Core 1 | . 5 . . . . Treads 12 | . . . 11 33 30 Leg 18 | . 28 28 21 . . Device 4 | . . . 10 11 . Storage 11 | . 14 14 11 11 10 Processor 11 | . 13 14 11 11 11 Protection 1 | . . . . . 10 Energy Gun 2 | . . 13 2 . . Ballistic Gun 19 | . 28 . 16 17 19 Slashing Weapon 1 | . . 7 2 . . Naked Turns . | . . . . . . Heaviest Build 58 | 11 28 29 32 32 58 Greatest Support 60 | 20 20 20 60 60 60 Greatest Overweight (x) 5 | . 1 1 1 . 5 Average Overweight (x) . | . . 1 . . . Largest Inventory Capacity 20 | 8 15 15 15 15 20 Average Capacity 15 | 8 14 15 15 15 18 Most Carried 17 | 6 9 9 15 15 17 Average Carried 11 | 5 6 7 13 14 14 Final Capacity 15 | 8 15 15 15 15 5 Final Carried 15 | 4 9 9 15 15 5 Class Distribution -------------------- 51% | Scavenger-Mutant 48% | Mutant Dominant Class ---------------- Mutant | -10/Materials Mutant | -10/Mines Scavenger-Mutant | -9/Materials Scavenger-Mutant | -9/Mines Scavenger-Mutant | -9/Exiles Resources | -11 -10 -10 -9 -9 -9 ----------- Run | Scr Mat Min Mat Min Exi Matter Collected 1620 | 200 272 101 712 195 140 Remotely . | . . . . . . Salvage Created 2386 | . 486 108 1078 319 395 Parts 160 | . 38 13 70 19 20 Haulers Intercepted 4 | . 1 . 3 . . Recyclers Shooed 2 | . 1 1 . . . Parts Field Recycled . | . . . . . . Retrieved Matter . | . . . . . . Parts Self-Destructed . | . . . . . . Prevented . | . . . . . . Kills | -11 -10 -10 -9 -9 -9 ------- Run | Scr Mat Min Mat Min Exi Combat Hostiles Destroyed 58 | . 10 6 21 8 13 Melee 2 | . . . 2 . . Guns 34 | . 8 . 14 5 7 AOE 22 | . 2 6 5 3 6 Classes Destroyed 13 | . 7 . 4 . 2 Worker 7 | . 1 1 5 . . Builder 2 | . 1 1 . . . Hauler 4 | . 1 . 3 . . Recycler 2 | . 1 . 1 . . Operator 2 | . 2 . . . . Watcher 2 | . . . 2 . . Swarmer 9 | . 3 3 3 . . Grunt 34 | . 7 3 11 6 7 Brawler 2 | . . . 1 1 . Duelist 3 | . . . 1 1 1 Sentry 5 | . . . 5 . . Hunter 3 | . . . . . 3 Programmer 2 | . . . . . 2 Best Kill Streak 6 | . 3 4 6 3 6 Combat Bots Only 6 | . 3 3 5 3 6 Max Kills in Single Turn 3 | . 2 3 3 2 2 Gunslinging . | . . . . . . Exploded 2 | . 2 2 2 2 2 Melee 1 | . . . 1 . . Uniques/NPCs Destroyed . | . . . . . . Combat | -11 -10 -10 -9 -9 -9 -------- Run | Scr Mat Min Mat Min Exi Damage Taken 3050 | . 341 414 835 255 1205 Core 519 | . 40 69 105 22 283 Absorbed by Shields . | . . . . . . Core Remaining (%) 78 | 100 . 56 . . . Volleys Fired 186 | 1 56 13 74 24 18 Largest 2 | 2 2 2 2 2 2 Hottest 53 | 40 40 40 53 46 46 Shots Fired 345 | 2 109 16 130 45 43 Gun 319 | 2 106 9 124 42 36 Cannon . | . . . . . . Launcher 26 | . 3 7 6 3 7 Special . | . . . . . . Kinetic 282 | 2 106 6 104 42 22 Thermal 37 | . . 3 20 . 14 Explosive 26 | . 3 7 6 3 7 Electromagnetic . | . . . . . . Robot Hit Streak 13 | 1 12 4 13 11 9 Robot Miss Streak 5 | 1 5 3 3 2 3 Penetration Max . | . . . . . . Secondary Targets 3 | . 2 . . . 1 Max Gunslinging Chain 1 | . 1 . . . 1 Autonomous 14 | . . . . . 14 Shots Hit Robots 231 | 1 62 8 95 35 30 Core Hits 126 | . 28 12 52 15 19 Critical Kills 1 | . . . 1 . . Critical Parts Destroyed 4 | . 1 . 2 1 . Critical Strikes 5 | . 1 . 3 1 . Destroy 5 | . 1 . 3 1 . Melee Attacks 8 | . . . 8 . . Impact . | . . . . . . Slashing 8 | . . . 8 . . Piercing . | . . . . . . Sneak Attacks . | . . . . . . Combat Hostiles . | . . . . . . Follow-up Attacks . | . . . . . . Damage Inflicted 5388 | 10 888 470 1924 683 1413 Guns 3123 | 10 689 49 1238 490 647 Cannons . | . . . . . . Explosions 2073 | . 199 421 494 193 766 Melee 192 | . . . 192 . . Ramming . | . . . . . . Kinetic 2627 | 10 689 27 1123 490 288 Thermal 496 | . . 22 115 . 359 Explosive 2073 | . 199 421 494 193 766 Electromagnetic . | . . . . . . Impact . | . . . . . . Slashing 192 | . . . 192 . . Piercing . | . . . . . . Highest Corruption 11 | . . . . . 11 Average Corruption 9 | . . . . . 9 Corruption Purged . | . . . . . . Effects 5 | . . . . . 5 Message Errors 3 | . . . . . 3 Heat Flow Errors 1 | . . . . . 1 Energy Discharges 1 | . . . . . 1 Overload Shots . | . . . . . . Overflow Damage 43 | . 25 . 6 12 . Projectiles . | . . . . . . Explosions 43 | . 25 . 6 12 . Melee . | . . . . . . Knockbacks . | . . . . . . Impact . | . . . . . . Kinetic . | . . . . . . Secondary . | . . . . . . Self-Inflicted Damage 300 | . 19 163 68 36 14 Shots 10 | . 1 5 2 1 1 Rammed . | . . . . . . Targets Rammed . | . . . . . . Kicked . | . . . . . . Crushed . | . . . . . . Highest Temperature 227 | . 35 24 1 . 227 Average Temperature 19 | . 7 13 1 . 88 Received Heat Transfer 720 | . 177 141 282 90 30 Siege Activations . | . . . . . . Robots Corrupted . | . . . . . . Combat Hostiles . | . . . . . . Parts Fried . | . . . . . . Impact Corruptions . | . . . . . . Robots Melted . | . . . . . . Combat Hostiles . | . . . . . . Parts Melted . | . . . . . . Heat Transferred 975 | . . 50 481 . 444 Parts Sabotaged . | . . . . . . Parts Stolen . | . . . . . . Parts Stripped . | . . . . . . Power Chain Reactions . | . . . . . . Missiles Intercepted . | . . . . . . Alert | -11 -10 -10 -9 -9 -9 ------- Run | Scr Mat Min Mat Min Exi Peak Influence 294 | . 180 205 294 260 . Initial 79 | . . 8 79 65 . Average 127 | . 77 135 151 186 . Maximum Alert Level 1 | . . 1 1 1 . Low Security (%) 81 | 100 100 56 74 73 . Level 1 18 | . . 43 25 26 . Level 2 . | . . . . . . Level 3 . | . . . . . . Level 4 . | . . . . . . Level 5 . | . . . . . . High Security . | . . . . . . Max Security . | . . . . . . Squads Dispatched 4 | . 2 . 2 . . Investigation . | . . . . . . Extermination . | . . . . . . Reinforcement 4 | . 2 . 2 . . Assault . | . . . . . . Garrison . | . . . . . . Intercept . | . . . . . . Construction Impeded 1 | . . . 1 . . Haulers Reinforced . | . . . . . . Active Scanning Responses . | . . . . . . Cargo Convoy Interrupts . | . . . . . . Stealth | -11 -10 -10 -9 -9 -9 --------- Run | Scr Mat Min Mat Min Exi Distress Signals 5 | . 1 . 4 . . Communications Jammed . | . . . . . . Distress Signals . | . . . . . . Times Spotted 87 | . 21 7 31 7 21 Peak Tracking Total 12 | . 4 4 5 3 12 Tactical Retreats 2 | . . 1 1 . . Traps | -11 -10 -10 -9 -9 -9 ------- Run | Scr Mat Min Mat Min Exi Traps Triggered . | . . . . . . Indirectly . | . . . . . . Trap Hack Attempts . | . . . . . . Triggered . | . . . . . . Disarmed 4 | . 4 . . . . Reprogrammed . | . . . . . . Reused . | . . . . . . Traps Extracted . | . . . . . . Installed . | . . . . . . Triggered . | . . . . . . Machines | -11 -10 -10 -9 -9 -9 ---------- Run | Scr Mat Min Mat Min Exi Machines Disabled 6 | . 1 2 . . 3 Max in Single Turn 2 | . 1 2 . . 1 Machines Sabotaged . | . . . . . . Garrisons Compromised . | . . . . . . Overloaded Fab Kills . | . . . . . . Fab Network Shutdowns . | . . . . . . Hacking | -11 -10 -10 -9 -9 -9 --------- Run | Scr Mat Min Mat Min Exi Machines Accessed 12 | . 6 . 4 . 2 Terminals 9 | . 6 . 3 . . Fabricators . | . . . . . . Repair Stations 1 | . . . 1 . . Recycling Units . | . . . . . . Scanalyzers . | . . . . . . Garrison Access . | . . . . . . Total Hacks 33 | . 21 . 10 . 2 Successful 22 | . 11 . 9 . 2 Failed 11 | . 10 . 1 . . Catastrophic 2 | . 2 . . . . Database Lockouts . | . . . . . . Manual 16 | . 13 . 2 . 1 Terminals 27 | . 21 . 6 . . Fabricators . | . . . . . . Repair Stations 4 | . . . 4 . . Recycling Units . | . . . . . . Scanalyzers . | . . . . . . Garrison Access . | . . . . . . Terminal Hacks 15 | . 8 . 5 . 2 Record 1 | . . . . . 1 Prototype ID Bank 1 | . 1 . . . . Branch Access Points 1 | . . . 1 . . Terminal Index 1 | . 1 . . . . Alert Level 2 | . 1 . 1 . . Unreport Threat 2 | . 1 . 1 . . Locate Traps 2 | . 2 . . . . Disarm Traps 2 | . 2 . . . . Recall Investigation 1 | . . . 1 . . Zone Layout 1 | . . . 1 . . EX-Prototype ID Bank 1 | . . . . . 1 Fabricator Hacks . | . . . . . . Repair Station Hacks 3 | . . . 3 . . Scan Component 1 | . . . 1 . . Repair 1 | . . . 1 . . Refit 1 | . . . 1 . . Recycling Unit Hacks . | . . . . . . Scanalyzer . | . . . . . . Garrison Access Hacks . | . . . . . . Unauthorized Hacks 4 | . 3 . 1 . . Terminals 4 | . 3 . 1 . . Botnet 4 | . 3 . 1 . . Fabricators . | . . . . . . Repair Stations . | . . . . . . Recycling Units . | . . . . . . Scanalyzers . | . . . . . . Garrison Access . | . . . . . . Data Cores Recovered . | . . . . . . Used . | . . . . . . Hacking Detections 10 | . 6 . 4 . . Full Trace Events . | . . . . . . Feedback Events . | . . . . . . Feedback Blocked . | . . . . . . Robot Schematics Acquired . | . . . . . . Robots Built . | . . . . . . Matter . | . . . . . . Time . | . . . . . . Total Robot Build Rating . | . . . . . . Part Schematics Acquired . | . . . . . . Parts Built . | . . . . . . Matter . | . . . . . . Time . | . . . . . . Total Part Build Rating . | . . . . . . Parts Repaired 1 | . . . 1 . . Time 26 | . . . 26 . . Parts Recycled . | . . . . . . Recycled Matter . | . . . . . . Retrieved Matter . | . . . . . . Retrieved Components . | . . . . . . Parts Scanalyzed . | . . . . . . Part Schematics Acquired . | . . . . . . Parts Damaged . | . . . . . . Bothacking | -11 -10 -10 -9 -9 -9 ------------ Run | Scr Mat Min Mat Min Exi Used RIF Installer . | . . . . . . Robots Hacked . | . . . . . . Non-combat . | . . . . . . Combat . | . . . . . . Robot Hacks Applied . | . . . . . . Relay Couplers Released . | . . . . . . Robots Rewired . | . . . . . . Allies Hacked . | . . . . . . Hacks Repelled . | . . . . . . Allies | -11 -10 -10 -9 -9 -9 -------- Run | Scr Mat Min Mat Min Exi Total Allies . | . . . . . . Largest Group . | . . . . . . Highest-Rated Group . | . . . . . . Highest-Rated Ally . | . . . . . . Total Orders . | . . . . . . Ally Attacks . | . . . . . . Total Damage . | . . . . . . Kills . | . . . . . . Allies Corrupted . | . . . . . . Allies Melted . | . . . . . . Intel | -11 -10 -10 -9 -9 -9 ------- Run | Scr Mat Min Mat Min Exi Robot Analysis Total . | . . . . . . Derelict Logs Recovered . | . . . . . . Drone Launches . | . . . . . . Drone Recoveries . | . . . . . . Exploration | -11 -10 -10 -9 -9 -9 ------------- Run | Scr Mat Min Mat Min Exi Turns Passed 4032 | 4 1196 287 1509 359 677 Spaces Moved 1916 | 1 532 126 714 176 367 Core 15 | . . . . . 15 Treads 843 | . . . 315 176 352 Legs 1058 | 1 532 126 399 . . Wheels . | . . . . . . Hover . | . . . . . . Flight . | . . . . . . Fastest Speed 120 | 120 120 200 120 160 150 Average Speed 170 | 120 188 200 158 160 164 Slowest Speed 300 | 120 200 200 200 160 300 Overloaded Moves . | . . . . . . Propulsion Burnouts . | . . . . . . Robots Hopped . | . . . . . . Cave-ins Triggered . | . . . . . . Exploration Rate (%) 46 | 2 92 30 59 37 60 Regions Visited 5 Branch Regions 3 Pre-discovered Areas 1 | . . . . . 1 Known Exits Taken 1 | . . . 1 . . Unknown Exits Taken 4 | 1 1 1 . 1 . Scrap Searched 1 | . . 1 . . . Spaces Dug . | . . . . . . Terrain Destroyed 120 | . 12 40 25 25 18 Melee . | . . . . . . Projectile . | . . . . . . AOE 120 | . 12 40 25 25 18 Terrain Rammed . | . . . . . . Walls Destroyed . | . . . . . . Machines Disabled . | . . . . . . Actions | -11 -10 -10 -9 -9 -9 --------- Run | Scr Mat Min Mat Min Exi Total 2346 | 3 627 145 947 210 414 Wait 104 | . 12 . 84 2 6 Move 1911 | . 531 125 713 175 367 Hop . | . . . . . . Pick Up 37 | . 11 2 18 2 4 Fast Attach 5 | . 2 . 3 . . Attach 11 | . 1 2 3 1 4 Detach . | . . . . . . Swap 40 | . 5 3 23 3 6 Drop 44 | 2 9 . 21 3 9 Fire 186 | 1 56 13 74 24 18 Melee 8 | . . . 8 . . Ram . | . . . . . . Kick . | . . . . . . Crush . | . . . . . . Escape Stasis . | . . . . . . Rewire . | . . . . . . Trap . | . . . . . . Miscellaneous . | . . . . . . Route ------- -11/Scrapyard -10/Materials (discovered 5 exits: *Mat x3 / [*Min x2]) -10/Mines -9/Materials (discovered 4 exits: [*Mat x2] / *Min x2) -9/Mines (discovered 2 exits: *Exi / [*Zio]) -9/Exiles History --------- Turn | Location | Event 5 | -11/Scrapyard | Discovered new exit (range 0) 5 | -11/Scrapyard | Entered Materials 118 | -10/Materials | Discovered new exit (range 11) 168 | -10/Materials | Discovered new exit (range 3) 292 | -10/Materials | Discovered new exit (range 10) 303 | -10/Materials | Build established: Mutant 585 | -10/Materials | Discovered new exit (range 16) 1053 | -10/Materials | Discovered new exit (range 16) 1201 | -10/Materials | Entered Mines 1383 | -10/Mines | Discovered new exit (range 13) 1488 | -10/Mines | Entered Materials 1488 | -9/Materials | Evolved 2 slots: Propulsion x1, Utility x1 1621 | -9/Materials | Repaired Ion Engine 2142 | -9/Materials | Build established: Scavenger-Mutant 2248 | -9/Materials | Discovered new exit (range 16) 2660 | -9/Materials | Discovered new exit (range 15) 2719 | -9/Materials | Identified exit to Mines 2997 | -9/Materials | Entered Mines 2998 | -9/Mines | A Derelict revealed a hidden shortcut to a safe place 3348 | -9/Mines | Deemed a non-threat by the Exiles lab entrance 3348 | -9/Mines | Discovered new exit (range 5) 3356 | -9/Mines | Entered Exiles 3395 | -9/Exiles | Met 8R-AWN 3460 | -9/Exiles | Met EX-HEX 3524 | -9/Exiles | Met EX-DEC 3530 | -9/Exiles | Learned location of Zion (-7) 3647 | -9/Exiles | Met EX-BIN 3668 | -9/Exiles | Aligned with FarCom system 3669 | -9/Exiles | Given EX-Vault access code 3706 | -9/Exiles | Opened EX-Vault 3745 | -9/Exiles | Warned to stay clear of 0b10 Research branches 3771 | -9/Exiles | Exiles lab attacked by MAIN.C 3866 | -9/Exiles | Found AWS/Thermal 3941 | -9/Exiles | Core integrity fell below 50% 3953 | -9/Exiles | System corruption reached 10% 3988 | -9/Exiles | Core integrity fell below 20% 4013 | -9/Exiles | Lost 6 parts (1p3n1u1w) 4033 | -9/Exiles | Destroyed by H-55 Commando with Gauss Rifle Last Messages --------------- Dropped Hvy. Assault Rifle. Penetrated by Slug. Dropped Hcp. Storage Unit. Destroyed Lgt. Nuclear Core. Slug penetrates FarCom Aligner. H-55 Commando destroyed. Acquired 47 matter. Acquired 53 matter. Acquired 4 matter. System corrupted: Heat flow error (+247). Dropped Lgt. Armor Plating. G-34 Mercenary destroyed. Dropped Ion Engine. Slug penetrates G-34 Mercenary. G-34 Mercenary destroyed. L-31 Rogue destroyed. Penetrated by Slug. G-34 Mercenary destroyed. H|EY3JDKDKBSBX,G9 KVVY2>AZ